Cogmind - Beta 9.4 *** ADVENTURER MODE // 2020.01.13 @ 02:53:42 // Winter2019/RPGLIKE Player: Rev Result: Destroyed by B-86 Titan with Matter Neutralizer Performance ------------- Evolutions (6) 3000 Regions Visited (28) 5600 Robots Destroyed (433) 2165 Value Destroyed (16193) 16193 Prototype IDs (55) 1100 Alien Tech Used (0) 0 Bonus (5986) 5986 TOTAL SCORE: 34044 Bonus ------- High Alert Combat Kills 1071 Follower Combat Kills 4255 Network Hubs Disabled 400 Met Data Miner 300 Met Imprinter 300 Was Imprinted 300 Met Zhirov 300 Met Warlord at Base 500 MAIN.C Attacked Warlord 500 Met R17 at Cetus 500 Friendly Fire -2440 Cogmind --------- Core Integrity 0/800 Matter 288/300 Energy 47/1200 System Corruption 5% Temperature Cool (9) Movement Treading (160) Location -4/Hub_04(d) Parts ------- > --- POWER (4) -------- Quantum Reactor Quantum Reactor Vortex Chain Reactor > --- PROPULSION (4) --- Centrium Heavy Treads Centrium Heavy Treads > --- UTILITY (11) ----- Experimental Coolant Injector Experimental Sensor Array Advanced Signal Interpreter Long-range Terrain Scanner Advanced Target Analyzer Precision Matter Filter Weapon Cycler Experimental Phase Shifter Layered Heavy Armor Plating Improved Force Field > --- WEAPON (5) ------- Zionite Phaser-M Zionite Phaser-M Zionite Phaser-M Improved KE Penetrator Hypervelocity Mass Driver > --- INVENTORY (6) ---- Energy Filter Advanced Transmission Jammer Component Analysis Suite System Purifier Improved Recalibrator Advanced Field Recycling Unit (289) Peak State ------------ > --- POWER ------------ Quantum Reactor Quantum Reactor Vortex Chain Reactor > --- PROPULSION ------- Centrium Heavy Treads Centrium Heavy Treads > --- UTILITY ---------- Experimental Coolant Injector Experimental Sensor Array Advanced Signal Interpreter Makeshift Terrain Scanner Advanced Target Analyzer Precision Matter Filter Weapon Cycler Experimental Phase Shifter Layered Heavy Armor Plating Improved Force Field > --- WEAPON ----------- Zionite Phaser-M Zionite Phaser-M Zionite Phaser-M Improved KE Penetrator Improved KE Penetrator > --- INVENTORY -------- Advanced Transmission Jammer Component Analysis Suite System Purifier Improved Recalibrator Advanced Field Recycling Unit [Rating: 189] Favorites ----------- Power Antimatter Reactor Engine Light Angular Momentum Engine Power Core Light Nuclear Core Reactor Antimatter Reactor Propulsion Heavy Treads Treads Heavy Treads Leg Aluminum Leg Utility Improved Signal Interpreter Device Makeshift Terrain Scanner Storage Compact Battery Processor Improved Signal Interpreter Hackware Ghost Barrier Protection Layered Heavy Armor Plating Weapon Railgun Energy Gun Beamcaster Energy Cannon HERF Cannon Ballistic Gun Railgun Ballistic Cannon Gauss Cannon Build | -11 -10 -10 -9 -9 -9 -8 -8 -7 -7 -7 -7 -7 -7 -6 -6 -6 -6 -6 -5 -5 -5 -5 -4 -4 -4 -4 -4 -4 ------- Run | Scr Mat Min Mat Min Exi Min Mat Fac Was Fac Low Low Zio Pro Fac Low Low Dat Pro Fac Upp War Pro Fac Ext Cet Arc Hub Slots Evolved 20 | 3 . 2 2 . 1 . 5 1 . . . . 1 1 . . . . 1 . 1 . 1 . . . . 1 Power 3 | . . 1 . . . . . 1 . . . . . 1 . . . . . . . . . . . . . . Propulsion 3 | 1 . . . . . . 2 . . . . . . . . . . . . . . . . . . . . . Utility 10 | 1 . 1 2 . 1 . 1 . . . . . 1 . . . . . 1 . 1 . 1 . . . . . Weapon 4 | 1 . . . . . . 2 . . . . . . . . . . . . . . . . . . . . 1 Parts Attached 192 | 5 8 8 6 . 1 2 21 3 6 2 6 13 3 7 15 3 2 . 13 11 5 11 3 12 9 14 . 3 Power 23 | 1 1 1 . . . 1 3 . 3 . . 2 . 3 . . . . . 1 . 2 . 2 . 3 . . Engine 7 | 1 . . . . . 1 3 . . . . 1 . 1 . . . . . . . . . . . . . . Core 6 | . 1 1 . . . . . . . . . . . 2 . . . . . 1 . 1 . . . . . . Reactor 10 | . . . . . . . . . 3 . . 1 . . . . . . . . . 1 . 2 . 3 . . Propulsion 13 | 2 . . 2 . . . 5 . 2 . . . . . . . . . . . . . . . . 2 . . Treads 7 | . . . 2 . . . 1 . 2 . . . . . . . . . . . . . . . . 2 . . Leg 6 | 2 . . . . . . 4 . . . . . . . . . . . . . . . . . . . . . Wheel . | . . . . . . . . . . . . . . . . . . . . . . . . . . . . . Hover . | . . . . . . . . . . . . . . . . . . . . . . . . . . . . . Flight . | . . . . . . . . . . . . . . . . . . . . . . . . . . . . . Utility 98 | . 5 2 2 . 1 . 5 . . 2 6 8 2 4 8 . 2 . 11 8 4 7 3 5 5 7 . 1 Device 81 | . 4 2 1 . 1 . . . . 2 5 7 2 4 7 . 2 . 9 8 4 5 3 4 5 5 . 1 Storage 1 | . . . . . . . . . . . . 1 . . . . . . . . . . . . . . . . Processor 8 | . 1 . 1 . . . 2 . . . . . . . 1 . . . 1 . . 1 . 1 . . . . Hackware 1 | . . . . . . . . . . . . . . . . . . . . . . 1 . . . . . . Protection 7 | . . . . . . . 3 . . . 1 . . . . . . . 1 . . . . . . 2 . . Artifact . | . . . . . . . . . . . . . . . . . . . . . . . . . . . . . Weapon 58 | 2 2 5 2 . . 1 8 3 1 . . 3 1 . 7 3 . . 2 2 1 2 . 5 4 2 . 2 Energy Gun 26 | 1 . 2 1 . . 1 5 1 . . . 1 1 . 4 1 . . . . 1 . . 2 4 . . 1 Energy Cannon 13 | . 2 1 1 . . . 3 . . . . 1 . . 1 . . . 1 1 . . . 2 . . . . Ballistic Gun 16 | 1 . 2 . . . . . . 1 . . 1 . . 2 2 . . 1 1 . 2 . 1 . 2 . . Ballistic Cannon 3 | . . . . . . . . 2 . . . . . . . . . . . . . . . . . . . 1 Launcher . | . . . . . . . . . . . . . . . . . . . . . . . . . . . . . Special Weapon . | . . . . . . . . . . . . . . . . . . . . . . . . . . . . . Impact Weapon . | . . . . . . . . . . . . . . . . . . . . . . . . . . . . . Slashing Weapon . | . . . . . . . . . . . . . . . . . . . . . . . . . . . . . Piercing Weapon . | . . . . . . . . . . . . . . . . . . . . . . . . . . . . . Special Melee Weapon . | . . . . . . . . . . . . . . . . . . . . . . . . . . . . . Unidentified Prototypes 24 | . . . 1 . . . 4 . . . . . . . . . . . . 2 . 6 1 4 1 5 . . Parts Lost 1 | . . 1 . . . . . . . . . . . . . . . . . . . . . . . . . . Power . | . . . . . . . . . . . . . . . . . . . . . . . . . . . . . Propulsion . | . . . . . . . . . . . . . . . . . . . . . . . . . . . . . Utility . | . . . . . . . . . . . . . . . . . . . . . . . . . . . . . Weapon 1 | . . 1 . . . . . . . . . . . . . . . . . . . . . . . . . . Highest Loss Streak 1 | . . 1 . . . . . . . . . . . . . . . . . . . . . . . . . . Average Slot Usage (%) 88 | . 98 100 97 100 100 100 99 94 90 88 88 80 74 83 90 89 90 90 85 84 86 84 81 81 82 81 82 82 Engine 1 | . 12 . . . . 5 12 11 3 . . . . . . . . . . . . . . . . . . . Core 4 | . 1 18 18 18 17 10 . . . . . . . 1 5 5 5 5 4 4 4 3 4 3 . . . . Reactor 9 | . . . . . . . . . 11 16 16 16 15 15 15 15 15 15 14 14 13 11 9 8 13 12 13 12 Treads 9 | . . . 6 18 17 16 8 . 7 11 11 11 10 10 10 10 10 10 9 9 9 9 9 8 8 8 8 8 Leg 3 | . 28 23 11 . . . 5 22 6 . . . . . . . . . . . . . . . . . . . Device 24 | . 21 22 27 27 28 33 26 22 22 22 23 18 15 25 30 30 30 30 20 18 22 21 22 25 26 29 30 29 Processor 11 | . 4 11 14 18 17 16 13 11 11 11 11 11 10 10 10 10 10 10 12 14 13 13 13 13 13 8 8 8 Protection 2 | . . . . . . . 5 5 5 5 3 2 . . . . . . 3 4 4 4 4 4 4 4 4 4 Energy Gun 6 | . 4 4 9 9 8 8 17 11 5 5 5 5 7 10 11 4 . . . . 2 4 4 2 9 9 8 11 Energy Cannon 5 | . 18 11 5 9 8 8 5 1 . . . 2 5 5 3 5 5 5 4 4 4 4 4 6 5 . . . Ballistic Gun 6 | . 4 7 3 . . . . . 5 5 5 5 5 5 4 10 15 15 14 13 10 9 9 7 1 6 8 5 Ballistic Cannon 1 | . . . . . . . . 7 11 11 11 7 2 . . . . . . . . . . . . . . 2 Naked Turns . | . . . . . . . . . . . . . . . . . . . . . . . . . . . . . Heaviest Build 151 | 9 16 21 21 21 22 28 46 54 86 87 87 87 88 96 100 101 101 101 144 139 141 140 137 140 135 142 139 151 Greatest Support 160 | 20 20 20 40 40 40 40 66 66 140 140 140 140 140 140 140 140 140 140 140 140 140 140 140 140 140 160 160 160 Greatest Overweight (x) 2 | 2 . 1 1 . . . 2 . 1 . . . . . . . . . 1 . 1 . . . . 1 . . Average Overweight (x) . | . . . . . . . . . . . . . . . . . . . . . . . . . . . . . Largest Inventory Capacity 6 | 4 4 4 6 6 6 6 6 6 6 6 6 6 6 6 6 6 6 6 6 6 6 6 6 6 6 6 6 6 Average Capacity 5 | 4 4 4 5 6 6 6 6 6 6 6 6 6 6 6 6 6 6 6 6 6 6 6 6 6 6 6 6 6 Most Carried 6 | 1 3 4 6 6 6 6 6 6 6 6 6 6 6 5 6 6 6 6 6 6 6 6 6 6 6 6 6 6 Average Carried 5 | . 2 2 4 6 5 5 4 5 5 5 5 5 5 3 5 5 6 6 5 5 5 5 5 5 6 5 6 5 Final Capacity 6 | 4 4 4 6 6 6 6 6 6 6 6 6 6 6 6 6 6 6 6 6 6 6 6 6 6 6 6 6 6 Final Carried 6 | 1 3 3 6 6 5 6 5 5 6 6 5 6 5 2 6 6 6 6 6 6 6 6 5 6 6 6 6 6 Class Distribution -------------------- 50% | Messiah-Skirmisher 39% | Scavenger-Skirmisher 7% | Mutant Dominant Class ---------------- Mutant | -10/Materials Mutant | -10/Mines Scavenger-Skirmisher | -9/Materials Scavenger-Skirmisher | -9/Mines Scavenger-Skirmisher | -9/Exiles Scavenger-Skirmisher | -8/Mines Scavenger-Skirmisher | -8/Materials Scavenger-Skirmisher | -7/Factory Scavenger-Skirmisher | -7/Waste Scavenger-Skirmisher | -7/Factory Scavenger-Skirmisher | -7/Lower Caves Scavenger-Skirmisher | -7/Lower Caves Scavenger-Skirmisher | -7/Zion Messiah-Skirmisher | -6/Proximity Caves Messiah-Skirmisher | -6/Factory Messiah-Skirmisher | -6/Lower Caves Messiah-Skirmisher | -6/Lower Caves Messiah-Skirmisher | -6/Data Miner Messiah-Skirmisher | -5/Proximity Caves Messiah-Skirmisher | -5/Factory Messiah-Skirmisher | -5/Upper Caves Messiah-Skirmisher | -5/Warlord Messiah-Skirmisher | -4/Proximity Caves Messiah-Skirmisher | -4/Factory Messiah-Skirmisher | -4/Extension Messiah-Skirmisher | -4/Cetus Messiah-Skirmisher | -4/Archives Messiah-Skirmisher | -4/Hub_04(d) Resources | -11 -10 -10 -9 -9 -9 -8 -8 -7 -7 -7 -7 -7 -7 -6 -6 -6 -6 -6 -5 -5 -5 -5 -4 -4 -4 -4 -4 -4 ----------- Run | Scr Mat Min Mat Min Exi Min Mat Fac Was Fac Low Low Zio Pro Fac Low Low Dat Pro Fac Upp War Pro Fac Ext Cet Arc Hub Matter Collected 7982 | 250 134 246 207 . . 30 210 . 521 495 564 909 55 1352 239 373 477 . 478 368 253 . 282 154 167 188 . 30 Remotely 68 | . 58 . . . . . . . . . . . . . . . 10 . . . . . . . . . . . Salvage Created 16703 | . 494 597 982 374 . 451 2244 . 1483 792 413 64 . 629 403 416 844 . 1346 1158 389 . 1520 427 920 383 . 374 Parts 938 | . 30 21 110 24 . 10 140 . 12 32 18 4 . 35 39 39 34 . 89 83 17 . 82 27 48 24 . 20 Haulers Intercepted 11 | . 1 . 2 . . . 6 . . . . . . . . . . . . . . . 1 . . . . 1 Recyclers Shooed 3 | . . . . . . . . . . 1 . . . . 1 . . . 1 . . . . . . . . . Parts Field Recycled 92 | . . . . . . . . . . . . . . . . . . . 34 10 19 10 19 . . . . . Retrieved Matter 1331 | . . . . . . . . . . . . . . . . . . . 620 91 87 331 202 . . . . . Parts Self-Destructed 363 | . . . . . . . . . . . 18 16 . 60 . 39 36 . 57 . 14 70 53 . . . . . Prevented 70 | . . . . . . . . . . . . 7 . 9 . 1 . . 19 . 4 4 26 . . . . . Kills | -11 -10 -10 -9 -9 -9 -8 -8 -7 -7 -7 -7 -7 -7 -6 -6 -6 -6 -6 -5 -5 -5 -5 -4 -4 -4 -4 -4 -4 ------- Run | Scr Mat Min Mat Min Exi Min Mat Fac Was Fac Low Low Zio Pro Fac Low Low Dat Pro Fac Upp War Pro Fac Ext Cet Arc Hub Combat Hostiles Destroyed 348 | . 9 29 32 15 . 7 43 . 5 10 13 3 . 12 8 18 16 . 34 18 11 . 34 7 14 9 . 1 Guns 232 | . 2 21 24 10 . 6 26 . 1 3 9 3 . 9 7 10 10 . 21 13 7 . 25 6 10 9 . . Cannons 106 | . 7 6 8 5 . 1 16 . 4 7 4 . . 2 . 8 6 . 11 5 4 . 8 1 3 . . . AOE 6 | . . 2 . . . . 1 . . . . . . . 1 . . . . . . . . . 1 . . 1 Classes Destroyed 24 | . 5 2 4 1 . 2 . . 1 1 2 . . 1 . . . . 1 . . . . 2 1 . . 1 Worker 16 | . 2 . 3 1 . . 3 . . . . . . . 2 . . . . 2 . . . . . . . 3 Builder 6 | . . . 1 . . . 1 . . 1 . . . . . . . . 2 . . . . . 1 . . . Tunneler 1 | . . . . 1 . . . . . . . . . . . . . . . . . . . . . . . . Hauler 11 | . 1 . 2 . . . 6 . . . . . . . . . . . . . . . 1 . . . . 1 Recycler 7 | . . . . . . 1 . . . 5 . . . . . . . . . . . . . . . . . 1 Mechanic 2 | . . . . . . . . . . . . . . . . . . . . . . . . 2 . . . . Operator 10 | . . . 1 . . . 3 . . . . . . . 2 . . . . 1 . . . . 2 . . 1 Drone 1 | . . . . . . . . . . . . . . . . . . . . . . . . 1 . . . . Watcher 24 | . 3 . 4 . . . 5 . . 1 . . . . 3 . . . 2 5 . . . 1 . . . . Swarmer 107 | . 3 8 16 9 . . 4 . . . 2 . . 6 . 14 5 . 11 3 9 . 10 . 2 5 . . Grunt 119 | . 6 5 5 5 . 6 26 . . 4 3 2 . 3 4 2 7 . 10 4 2 . 18 2 5 . . . Brawler 8 | . . . . . . . . . . . 3 . . . . . . . 1 . . . 1 2 1 . . . Duelist 14 | . . . 1 1 . . 2 . . . 3 . . 1 . 1 2 . 3 . . . . . . . . . Protector 2 | . . . . . . . . . . . . . . . . . . . 1 . . . . . 1 . . . Sentry 44 | . . . 10 . . . 10 . . 4 1 . . 1 . . 2 . 5 4 . . 1 1 4 . . 1 Demolisher 2 | . . 2 . . . . . . . . . . . . . . . . . . . . . . . . . . Hunter 10 | . . . . . . 1 1 . . . . . . . 2 . . . 2 2 . . 2 . . . . . Programmer 14 | . . . . . . . . . . 2 . . . . 2 . . . . 5 . . 1 2 . 2 . . Behemoth 6 | . . . . . . . . . . . 1 1 . 1 . 1 . . 1 . . . 1 . . . . . Compactor 5 | . . . . . . . . . 5 . . . . . . . . . . . . . . . . . . . Cetus Guard 2 | . . . . . . . . . . . . . . . . . . . . . . . . . . 2 . . Z-Light 1 | . . . . . . . . . . . . . . . . . . . . . . . . . 1 . . . Z-Heavy 2 | . . . . . . . . . . . . . . . . . . . . . . . . . . . . 2 Decomposer 1 | . . . . . . . . . . . . . . . . . . . . . 1 . . . . . . . Assembled 14 | . . 14 . . . . . . . . . . . . . . . . . . . . . . . . . . Thug 1 | . . . . . . . . . . . . . . . . . . . . . . . . . 1 . . . Butcher 1 | . . . . . . . . . . . . . . . . . . . . . . . . . 1 . . . Martyr 1 | . . . . . . . . . . . . . . . . . . . . . . . . . . . . 1 Mutant 1 | . . . . . . . . . . . . . . 1 . . . . . . . . . . . . . . Best Kill Streak 16 | . 4 6 7 5 . 3 16 . 2 8 8 2 . 3 3 5 5 . 7 9 4 . 7 5 3 5 . 7 Combat Bots Only 11 | . 3 6 5 4 . 2 11 . 2 4 8 2 . 3 3 5 5 . 7 8 4 . 7 4 3 5 . 1 Max Kills in Single Turn 4 | . 2 2 2 1 . 1 2 . 1 3 2 1 . 2 2 1 1 . 2 2 1 . 2 2 3 2 . 4 Gunslinging 1 | . . . . . . . . . . . . . . 1 . . . . . . . . . . . 1 . . Exploded 2 | . . 2 . . . . 1 . . . . . . . 1 . . . . . . . . . 1 . . 1 Melee . | . . . . . . . . . . . . . . . . . . . . . . . . . . . . . Uniques/NPCs Destroyed . | . . . . . . . . . . . . . . . . . . . . . . . . . . . . . Combat | -11 -10 -10 -9 -9 -9 -8 -8 -7 -7 -7 -7 -7 -7 -6 -6 -6 -6 -6 -5 -5 -5 -5 -4 -4 -4 -4 -4 -4 -------- Run | Scr Mat Min Mat Min Exi Min Mat Fac Was Fac Low Low Zio Pro Fac Low Low Dat Pro Fac Upp War Pro Fac Ext Cet Arc Hub Damage Taken 10471 | . 159 1264 577 163 . 434 1119 . . 246 340 150 . 687 344 222 640 . 438 522 118 . 1144 8 557 74 96 1169 Core 7646 | . 125 996 448 121 . 349 804 . . 167 232 116 . 549 274 170 499 . 285 340 76 . 748 3 429 43 66 806 Absorbed by Shields 4564 | . 12 349 230 68 . 147 423 . . 103 129 11 . . 132 89 253 . 456 558 131 . 360 8 505 77 96 427 Redirected to Core 6636 | . 101 832 367 99 . 279 740 . . 143 223 116 . 454 215 146 439 . 253 318 76 . 717 3 266 43 66 740 Core Remaining (%) 84 | 100 . 27 . . . 67 98 . . . . . . 100 . . . . 97 . . . 100 . . . . . Volleys Fired 909 | . 34 72 96 30 . 33 145 . 25 22 23 16 . 36 36 27 34 . 68 51 17 . 81 16 25 20 . 2 Largest 5 | . 2 2 2 2 . 2 4 . 4 4 4 4 . 4 4 4 4 . 4 4 4 . 4 4 4 4 . 5 Hottest 324 | . 112 112 124 124 . 143 244 . 206 206 206 206 . 265 265 230 136 . 189 189 237 . 237 261 324 324 . 320 Shots Fired 2668 | . 66 131 184 58 . 55 425 . 99 85 82 29 . 106 102 100 136 . 246 163 63 . 291 63 100 74 . 10 Gun 1896 | . 36 105 137 28 . 33 292 . 49 45 40 21 . 78 85 79 102 . 186 117 47 . 238 35 69 66 . 8 Cannon 772 | . 30 26 47 30 . 22 133 . 50 40 42 8 . 28 17 21 34 . 60 46 16 . 53 28 31 8 . 2 Launcher . | . . . . . . . . . . . . . . . . . . . . . . . . . . . . . Special . | . . . . . . . . . . . . . . . . . . . . . . . . . . . . . Kinetic 1111 | . 18 57 49 . . . . . 75 62 64 13 . 6 36 53 102 . 186 117 39 . 160 32 14 24 . 4 Thermal 1146 | . 18 48 135 58 . 55 345 . 24 23 18 16 . 100 53 43 34 . 14 . 8 . 78 16 52 8 . . Explosive . | . . . . . . . . . . . . . . . . . . . . . . . . . . . . . Electromagnetic 335 | . 30 26 . . . . 80 . . . . . . . 13 4 . . 46 46 16 . 53 15 6 . . . Phasic 76 | . . . . . . . . . . . . . . . . . . . . . . . . . 28 42 . 6 Robot Hit Streak 96 | . 10 28 19 16 . 20 35 . 37 62 62 22 . 25 32 49 43 . 96 34 19 . 48 68 36 31 . 36 Robot Miss Streak 5 | . 4 3 4 3 . 2 5 . 2 1 1 1 . 4 1 2 4 . 2 2 1 . 1 4 1 1 . . Penetration Max 2 | . . . . . . . . . . 1 2 . . . 1 1 1 . 1 1 . . 1 1 1 . . . Secondary Targets 17 | . . 7 2 . . . . . . . . . . 1 . 1 . . . . . . . . . 6 . . Max Gunslinging Chain 2 | . . 1 1 . . . . . . . . . . 1 . 1 . . . . . . . . . 2 . . Shots Hit Robots 1919 | . 44 104 139 37 . 45 272 . 85 74 58 23 . 74 74 61 104 . 164 122 37 . 235 42 64 56 . 5 Core Hits 774 | . 20 46 53 20 . 17 103 . 18 29 24 11 . 25 25 29 32 . 65 65 15 . 80 22 37 16 . 22 Critical Hits 118 | . . 1 4 2 . 3 8 . 4 1 3 1 . . . 3 9 . 25 15 2 . 17 11 2 6 . 1 Critical Kills 39 | . . . 4 1 . 1 2 . 1 1 1 . . . . . 2 . 11 7 . . 4 3 1 . . . Critical Parts Destroyed 67 | . . 1 . 1 . 2 6 . 1 . 2 . . . . 3 5 . 12 7 2 . 11 7 1 5 . 1 Melee Attacks . | . . . . . . . . . . . . . . . . . . . . . . . . . . . . . Impact . | . . . . . . . . . . . . . . . . . . . . . . . . . . . . . Slashing . | . . . . . . . . . . . . . . . . . . . . . . . . . . . . . Piercing . | . . . . . . . . . . . . . . . . . . . . . . . . . . . . . Sneak Attacks . | . . . . . . . . . . . . . . . . . . . . . . . . . . . . . Combat Hostiles . | . . . . . . . . . . . . . . . . . . . . . . . . . . . . . Follow-up Attacks . | . . . . . . . . . . . . . . . . . . . . . . . . . . . . . Damage Inflicted 47544 | . 773 1492 2239 700 . 918 5166 . 2240 1899 1463 549 . 1440 2367 1507 2414 . 4132 3446 916 . 5854 1497 2867 2004 . 1661 Guns 29386 | . 314 880 1640 393 . 607 3503 . 1068 1032 864 382 . 1124 1645 982 1286 . 2382 2154 581 . 4261 707 1729 1716 . 136 Cannons 15114 | . 459 498 599 307 . 311 1515 . 1172 845 599 167 . 316 214 525 1128 . 1750 1059 335 . 1518 790 703 288 . 16 Explosions 3022 | . . 114 . . . . 148 . . . . . . . 508 . . . . 233 . . 75 . 435 . . 1509 Melee . | . . . . . . . . . . . . . . . . . . . . . . . . . . . . . Ramming 22 | . . . . . . . . . . 22 . . . . . . . . . . . . . . . . . . Kinetic 17056 | . 152 429 402 . . . . . 1798 1385 1110 245 . 50 654 500 1286 . 2382 2154 421 . 2694 659 273 424 . 38 Thermal 19857 | . 162 565 1837 700 . 918 4190 . 442 492 353 304 . 1390 1397 942 1128 . 402 147 160 . 1642 384 1866 288 . 148 Explosive . | . . . . . . . . . . . . . . . . . . . . . . . . . . . . . Electromagnetic 8633 | . 459 498 . . . . 976 . . . . . . . 316 65 . . 1348 1145 335 . 1518 454 158 . . 1361 Impact . | . . . . . . . . . . . . . . . . . . . . . . . . . . . . . Slashing . | . . . . . . . . . . . . . . . . . . . . . . . . . . . . . Piercing . | . . . . . . . . . . . . . . . . . . . . . . . . . . . . . Phasic 1976 | . . . . . . . . . . . . . . . . . . . . . . . . . 570 1292 . 114 Highest Corruption 27 | . . . . . . . 1 . 27 27 26 7 . . . . . . 3 5 5 . . . . . . 4 Average Corruption 11 | . . . . . . . 1 . 14 26 16 3 . . . . . . 2 2 3 . . . . . . 2 Corruption Purged 35 | . . . . . . . . . . 1 19 7 . . . . . . 3 . 5 . . . . . . . Effects 308 | . . . . . . . 3 . 35 99 126 26 . . . . . . . 10 9 . . . . . . . Message Errors 44 | . . . . . . . 1 . 3 11 22 5 . . . . . . . 2 . . . . . . . . Matter Fused 51 | . . . . . . . . . 2 17 18 9 . . . . . . . 2 3 . . . . . . . Heat Flow Errors 20 | . . . . . . . . . 2 1 11 3 . . . . . . . 1 2 . . . . . . . Energy Discharges 31 | . . . . . . . 2 . 4 6 15 2 . . . . . . . . 2 . . . . . . . Data Loss (minor) 18 | . . . . . . . . . 2 3 10 3 . . . . . . . . . . . . . . . . Data Loss (major) 14 | . . . . . . . . . 1 5 8 . . . . . . . . . . . . . . . . . Misfires 6 | . . . . . . . . . . 2 2 2 . . . . . . . . . . . . . . . . Alerts 7 | . . . . . . . . . . 2 5 . . . . . . . . . . . . . . . . . Misdirections 36 | . . . . . . . . . 5 17 14 . . . . . . . . . . . . . . . . . Targeting Errors 68 | . . . . . . . . . 15 30 15 1 . . . . . . . 5 2 . . . . . . . Weapon Failures 13 | . . . . . . . . . 1 5 6 1 . . . . . . . . . . . . . . . . Overload Shots . | . . . . . . . . . . . . . . . . . . . . . . . . . . . . . Overflow Damage 431 | . . 13 20 . . . 48 . . 1 36 . . . 44 . 36 . 33 47 15 . 90 27 . 18 . 3 Projectiles 386 | . . 13 20 . . . 48 . . 1 36 . . . 2 . 36 . 33 47 15 . 90 27 . 18 . . Explosions 45 | . . . . . . . . . . . . . . . 42 . . . . . . . . . . . . 3 Melee . | . . . . . . . . . . . . . . . . . . . . . . . . . . . . . Knockbacks 4 | . . . . . . . . . . 3 1 . . . . . . . . . . . . . . . . . Impact 1 | . . . . . . . . . . 1 . . . . . . . . . . . . . . . . . . Kinetic 3 | . . . . . . . . . . 2 1 . . . . . . . . . . . . . . . . . Secondary . | . . . . . . . . . . . . . . . . . . . . . . . . . . . . . Self-Inflicted Damage 352 | . . 10 . . . . 39 . . . . . . . 74 . . . . . . . 51 . 51 . . 127 Shots 8 | . . 1 . . . . 1 . . . . . . . 2 . . . . . . . 1 . 1 . . 2 Rammed 3 | . . . . . . . . . . 3 . . . . . . . . . . . . . . . . . . Targets Rammed 3 | . . . . . . . . . . 3 . . . . . . . . . . . . . . . . . . Kicked . | . . . . . . . . . . . . . . . . . . . . . . . . . . . . . Crushed . | . . . . . . . . . . . . . . . . . . . . . . . . . . . . . Highest Temperature 571 | . 204 114 . . . . 479 . 413 186 410 259 . 339 274 66 . . 40 136 174 . 108 70 571 186 . 180 Average Temperature 94 | . 72 43 . . . . 138 . 151 54 131 103 . 105 59 44 . . 20 34 42 . 41 17 167 85 . 97 Received Heat Transfer 2201 | . 82 191 126 40 . 237 570 . . 68 42 99 . 84 34 12 214 . 140 48 . . 101 . 48 8 . 57 Effects 12 | . . . . . . . . . 1 . 5 . . . . . . . . . . . . . 6 . . . Shutdowns 2 | . . . . . . . . . . . 1 . . . . . . . . . . . . . 1 . . . Interference 6 | . . . . . . . . . . . 3 . . . . . . . . . . . . . 3 . . . Short Circuit 2 | . . . . . . . . . 1 . 1 . . . . . . . . . . . . . . . . . Damage (minor) 1 | . . . . . . . . . . . . . . . . . . . . . . . . . 1 . . . Damage (core) 1 | . . . . . . . . . . . . . . . . . . . . . . . . . 1 . . . Siege Activations . | . . . . . . . . . . . . . . . . . . . . . . . . . . . . . Robots Corrupted 6 | . . . . . . . . . . . . . . . . . . . 2 . . . 1 . . . . 3 Combat Hostiles 3 | . . . . . . . . . . . . . . . . . . . 2 . . . 1 . . . . . Parts Fried 56 | . 3 1 . . . . 2 . . . . . . . . . . . 12 7 2 . 11 4 . 1 . 13 Impact Corruptions . | . . . . . . . . . . . . . . . . . . . . . . . . . . . . . Robots Melted 1 | . . . . . . . . . . . . . . 1 . . . . . . . . . . . . . . Combat Hostiles 1 | . . . . . . . . . . . . . . 1 . . . . . . . . . . . . . . Parts Melted 40 | . . . 8 3 . 2 9 . . . . . . 5 2 3 3 . . . . . 1 . 4 . . . Heat Transferred 31583 | . 481 1445 3441 1406 . 1665 7587 . 777 851 629 518 . 2450 1558 1205 1450 . 600 100 259 . 2566 407 1817 296 . 75 Parts Sabotaged . | . . . . . . . . . . . . . . . . . . . . . . . . . . . . . Parts Stolen . | . . . . . . . . . . . . . . . . . . . . . . . . . . . . . Parts Stripped . | . . . . . . . . . . . . . . . . . . . . . . . . . . . . . Power Chain Reactions 8 | . . . . . . . 3 . . . . . . . 2 . . . . . . . 1 . 1 . . 1 Missiles Intercepted . | . . . . . . . . . . . . . . . . . . . . . . . . . . . . . Alert | -11 -10 -10 -9 -9 -9 -8 -8 -7 -7 -7 -7 -7 -7 -6 -6 -6 -6 -6 -5 -5 -5 -5 -4 -4 -4 -4 -4 -4 ------- Run | Scr Mat Min Mat Min Exi Min Mat Fac Was Fac Low Low Zio Pro Fac Low Low Dat Pro Fac Upp War Pro Fac Ext Cet Arc Hub Peak Influence 1173 | . 89 292 433 396 . 190 516 167 52 254 . . . . 354 . . . . 761 . . . 616 1139 940 629 1173 Average Influence 268 | . 43 91 259 195 . 36 337 167 48 89 . . . . 214 . . . . 526 . . . 367 601 672 441 419 Maximum Alert Level 4 | . . 1 2 1 . . 2 . . 1 . . . . 1 . . . . 3 . . . 2 4 3 2 4 Low Security (%) 44 | 100 100 89 20 55 . 100 9 100 100 80 . . . . 39 . . . . 9 . . . 19 6 . . 20 Level 1 29 | . . 10 70 44 . . 60 . . 19 . . . . 60 . . . . . . . . 7 15 . 52 44 Level 2 20 | . . . 8 . . . 29 . . . . . . . . . . . . 79 . . . 73 40 57 47 25 Level 3 4 | . . . . . . . . . . . . . . . . . . . . 10 . . . . 29 42 . 1 Level 4 . | . . . . . . . . . . . . . . . . . . . . . . . . . 7 . . 9 Level 5 . | . . . . . . . . . . . . . . . . . . . . . . . . . . . . . High Security . | . . . . . . . . . . . . . . . . . . . . . . . . . . . . . Max Security . | . . . . . . . . . . . . . . . . . . . . . . . . . . . . . Squads Dispatched 33 | . . 1 . . . . 4 . . 4 . . . . 4 . . . . 3 . . . 5 7 . . 5 Investigation 3 | . . . . . . . . . . . . . . . . . . . . . . . . 1 2 . . . Extermination 5 | . . . . . . . . . . 1 . . . . 2 . . . . 1 . . . 1 . . . . Reinforcement 15 | . . . . . . . 3 . . 3 . . . . 2 . . . . . . . . 2 1 . . 4 Assault 9 | . . 1 . . . . . . . . . . . . . . . . . 2 . . . 1 4 . . 1 Garrison 1 | . . . . . . . 1 . . . . . . . . . . . . . . . . . . . . . Intercept . | . . . . . . . . . . . . . . . . . . . . . . . . . . . . . Construction Impeded 3 | . . . . . . . 1 . . . . . . . . . . . . . . . . . . . . 2 Haulers Reinforced 2 | . . . . . . . . . . 1 . . . . 1 . . . . . . . . . . . . . Stealth | -11 -10 -10 -9 -9 -9 -8 -8 -7 -7 -7 -7 -7 -7 -6 -6 -6 -6 -6 -5 -5 -5 -5 -4 -4 -4 -4 -4 -4 --------- Run | Scr Mat Min Mat Min Exi Min Mat Fac Was Fac Low Low Zio Pro Fac Low Low Dat Pro Fac Upp War Pro Fac Ext Cet Arc Hub Distress Signals 13 | . 1 . 3 . . . 2 . . 1 . . . . . . . . . . . . . . . 2 . 4 Communications Jammed 1 | . . . . . . . . . . . . . . . 1 . . . . . . . . . . . . . Distress Signals 1 | . . . . . . . . . . . . . . . 1 . . . . . . . . . . . . . Times Spotted 553 | . 15 42 43 21 . 8 59 . 9 12 14 4 . 19 22 18 17 . 32 35 14 3 36 15 47 25 8 35 Peak Tracking Total 22 | . 3 6 5 4 . 3 7 . 3 3 9 3 . 5 3 4 5 . 5 5 5 9 7 6 10 9 7 22 Tactical Retreats 33 | . 1 3 2 3 . 1 1 . 4 . 1 . . . . 2 1 . 1 4 2 . 3 1 . 2 . 1 Traps | -11 -10 -10 -9 -9 -9 -8 -8 -7 -7 -7 -7 -7 -7 -6 -6 -6 -6 -6 -5 -5 -5 -5 -4 -4 -4 -4 -4 -4 ------- Run | Scr Mat Min Mat Min Exi Min Mat Fac Was Fac Low Low Zio Pro Fac Low Low Dat Pro Fac Upp War Pro Fac Ext Cet Arc Hub Traps Triggered 7 | . . . . . . . 2 1 . 2 . . . . . . . . 1 1 . . . . . . . . Indirectly . | . . . . . . . . . . . . . . . . . . . . . . . . . . . . . Trap Hack Attempts . | . . . . . . . . . . . . . . . . . . . . . . . . . . . . . Triggered . | . . . . . . . . . . . . . . . . . . . . . . . . . . . . . Disarmed 6 | . 6 . . . . . . . . . . . . . . . . . . . . . . . . . . . Reprogrammed . | . . . . . . . . . . . . . . . . . . . . . . . . . . . . . Reused . | . . . . . . . . . . . . . . . . . . . . . . . . . . . . . Traps Extracted . | . . . . . . . . . . . . . . . . . . . . . . . . . . . . . Installed . | . . . . . . . . . . . . . . . . . . . . . . . . . . . . . Triggered 17 | . . . . . . . . . . . . 3 . . . . 1 . 2 . . 11 . . . . . . Machines | -11 -10 -10 -9 -9 -9 -8 -8 -7 -7 -7 -7 -7 -7 -6 -6 -6 -6 -6 -5 -5 -5 -5 -4 -4 -4 -4 -4 -4 ---------- Run | Scr Mat Min Mat Min Exi Min Mat Fac Was Fac Low Low Zio Pro Fac Low Low Dat Pro Fac Upp War Pro Fac Ext Cet Arc Hub Machines Disabled 72 | . . 4 4 . . . 3 . . . 1 . . . 25 . 1 . 6 6 . . 4 1 3 3 . 11 Max in Single Turn 17 | . . 4 1 . . . 1 . . . 1 . . . 17 . 1 . 1 3 . . 1 1 1 1 . 9 Garrison Access 3 | . . . . . . . 1 . . . . . . . 1 . . . . . . . . 1 . . . . Network Hub 2 | . . . . . . . . . . . . . . . . . . . . . . . . . . . . 2 Machines Sabotaged . | . . . . . . . . . . . . . . . . . . . . . . . . . . . . . Garrisons Compromised . | . . . . . . . . . . . . . . . . . . . . . . . . . . . . . Overloaded Fab Kills . | . . . . . . . . . . . . . . . . . . . . . . . . . . . . . Fab Network Shutdowns 2 | . . . . . . . . . . . . . . . . . . . . 1 . . . 1 . . . . Hacking | -11 -10 -10 -9 -9 -9 -8 -8 -7 -7 -7 -7 -7 -7 -6 -6 -6 -6 -6 -5 -5 -5 -5 -4 -4 -4 -4 -4 -4 --------- Run | Scr Mat Min Mat Min Exi Min Mat Fac Was Fac Low Low Zio Pro Fac Low Low Dat Pro Fac Upp War Pro Fac Ext Cet Arc Hub Machines Accessed 30 | . 5 . 5 . 1 . 2 . . . . 2 1 . 1 1 . 4 3 1 1 1 . 2 . . . . Terminals 14 | . 5 . 5 . . . 1 . . . . . . . . 1 . . 2 . . . . . . . . . Fabricators 3 | . . . . . . . . . . . . . . . . . . . 1 1 . . . 1 . . . . Repair Stations . | . . . . . . . . . . . . . . . . . . . . . . . . . . . . . Recycling Units . | . . . . . . . . . . . . . . . . . . . . . . . . . . . . . Scanalyzers . | . . . . . . . . . . . . . . . . . . . . . . . . . . . . . Garrison Access 3 | . . . . . . . 1 . . . . . . . 1 . . . . . . . . 1 . . . . Total Hacks 72 | . 8 . 5 . 1 . 3 . . . . 2 4 . 1 1 . 29 8 2 1 1 . 6 . . . . Successful 60 | . 3 . 4 . 1 . 1 . . . . 2 4 . 1 1 . 29 6 2 1 1 . 4 . . . . Failed 12 | . 5 . 1 . . . 2 . . . . . . . . . . . 2 . . . . 2 . . . . Catastrophic 3 | . . . . . . . . . . . . . . . . . . . 1 . . . . 2 . . . . Database Lockouts . | . . . . . . . . . . . . . . . . . . . . . . . . . . . . . Manual 44 | . . . . . . . . . . . . . 1 . 11 . . . . 2 . 1 . 5 10 7 1 6 Terminals 21 | . 8 . 5 . . . 2 . . . . . . . . 1 . . 5 . . . . . . . . . Fabricators 9 | . . . . . . . . . . . . . . . . . . . 3 2 . . . 4 . . . . Repair Stations . | . . . . . . . . . . . . . . . . . . . . . . . . . . . . . Recycling Units . | . . . . . . . . . . . . . . . . . . . . . . . . . . . . . Scanalyzers . | . . . . . . . . . . . . . . . . . . . . . . . . . . . . . Garrison Access 4 | . . . . . . . 1 . . . . . . . 1 . . . . . . . . 2 . . . . Terminal Hacks 50 | . 3 . 4 . 1 . . . . . . 2 4 . . 1 . 29 4 . 1 1 . . . . . . Record 16 | . . . . . 1 . . . . . . . . . . 1 . 11 3 . . . . . . . . . Part Schematic 14 | . . . . . . . . . . . . . 4 . . . . 10 . . . . . . . . . . Robot Schematic 5 | . . . . . . . . . . . . . . . . . . 5 . . . . . . . . . . Prototype ID Bank 4 | . 1 . . . . . . . . . . . . . . . . 3 . . . . . . . . . . Open Door 5 | . . . . . . . . . . . . 2 . . . . . . 1 . 1 1 . . . . . . Emergency Access Points 1 | . . . 1 . . . . . . . . . . . . . . . . . . . . . . . . . Disarm Traps 1 | . 1 . . . . . . . . . . . . . . . . . . . . . . . . . . . Dispatch Records 1 | . 1 . . . . . . . . . . . . . . . . . . . . . . . . . . . Transport Status 1 | . . . 1 . . . . . . . . . . . . . . . . . . . . . . . . . Registered Components 1 | . . . 1 . . . . . . . . . . . . . . . . . . . . . . . . . Zone Layout 1 | . . . 1 . . . . . . . . . . . . . . . . . . . . . . . . . Fabricator Hacks 8 | . . . . . . . . . . . . . . . . . . . 2 2 . . . 4 . . . . Load Schematic 4 | . . . . . . . . . . . . . . . . . . . 1 1 . . . 2 . . . . Build 4 | . . . . . . . . . . . . . . . . . . . 1 1 . . . 2 . . . . Repair Station Hacks . | . . . . . . . . . . . . . . . . . . . . . . . . . . . . . Recycling Unit Hacks . | . . . . . . . . . . . . . . . . . . . . . . . . . . . . . Scanalyzer . | . . . . . . . . . . . . . . . . . . . . . . . . . . . . . Garrison Access Hacks 2 | . . . . . . . 1 . . . . . . . 1 . . . . . . . . . . . . . Seal Access 2 | . . . . . . . 1 . . . . . . . 1 . . . . . . . . . . . . . Unauthorized Hacks . | . . . . . . . . . . . . . . . . . . . . . . . . . . . . . Terminals . | . . . . . . . . . . . . . . . . . . . . . . . . . . . . . Fabricators . | . . . . . . . . . . . . . . . . . . . . . . . . . . . . . Repair Stations . | . . . . . . . . . . . . . . . . . . . . . . . . . . . . . Recycling Units . | . . . . . . . . . . . . . . . . . . . . . . . . . . . . . Scanalyzers . | . . . . . . . . . . . . . . . . . . . . . . . . . . . . . Garrison Access . | . . . . . . . . . . . . . . . . . . . . . . . . . . . . . Data Cores Recovered 6 | . . . 1 . . . 3 . . . . . . . 1 . . . . . . . . . 1 . . . Used 1 | . . . 1 . . . . . . . . . . . . . . . . . . . . . . . . . Hacking Detections 11 | . 2 . 2 . . . 1 . . . . . . . . 1 . . 3 . . . . 2 . . . . Full Trace Events 2 | . . . . . . . . . . . . . . . . . . . 1 . . . . 1 . . . . Feedback Events . | . . . . . . . . . . . . . . . . . . . . . . . . . . . . . Feedback Blocked . | . . . . . . . . . . . . . . . . . . . . . . . . . . . . . Robot Schematics Acquired 8 | . . . . . . . . . . . . . . . 3 . . 5 . . . . . . . . . . Robots Built 3 | . . . . . . . . . . . . . . . . . . . . . . . . 3 . . . . Matter 504 | . . . . . . . . . . . . . . . . . . . . . . . . 504 . . . . Time 268 | . . . . . . . . . . . . . . . . . . . . . . . . 268 . . . . Total Robot Build Rating 13 | . . . . . . . . . . . . . . . . . . . . . . . . 13 . . . . Part Schematics Acquired 39 | . . . . . . . . . . . . . 4 . 25 . . 10 . . . . . . . . . . Parts Built 1 | . . . . . . . . . . . . . . . . . . . . 1 . . . . . . . . Matter 285 | . . . . . . . . . . . . . . . . . . . . 285 . . . . . . . . Time 76 | . . . . . . . . . . . . . . . . . . . . 76 . . . . . . . . Total Part Build Rating 5 | . . . . . . . . . . . . . . . . . . . . 5 . . . . . . . . Parts Repaired . | . . . . . . . . . . . . . . . . . . . . . . . . . . . . . Time . | . . . . . . . . . . . . . . . . . . . . . . . . . . . . . Parts Recycled . | . . . . . . . . . . . . . . . . . . . . . . . . . . . . . Recycled Matter . | . . . . . . . . . . . . . . . . . . . . . . . . . . . . . Retrieved Matter . | . . . . . . . . . . . . . . . . . . . . . . . . . . . . . Retrieved Components . | . . . . . . . . . . . . . . . . . . . . . . . . . . . . . Parts Scanalyzed . | . . . . . . . . . . . . . . . . . . . . . . . . . . . . . Part Schematics Acquired . | . . . . . . . . . . . . . . . . . . . . . . . . . . . . . Parts Damaged . | . . . . . . . . . . . . . . . . . . . . . . . . . . . . . Bothacking | -11 -10 -10 -9 -9 -9 -8 -8 -7 -7 -7 -7 -7 -7 -6 -6 -6 -6 -6 -5 -5 -5 -5 -4 -4 -4 -4 -4 -4 ------------ Run | Scr Mat Min Mat Min Exi Min Mat Fac Was Fac Low Low Zio Pro Fac Low Low Dat Pro Fac Upp War Pro Fac Ext Cet Arc Hub Used RIF Installer . | . . . . . . . . . . . . . . . . . . . . . . . . . . . . . Robots Hacked . | . . . . . . . . . . . . . . . . . . . . . . . . . . . . . Non-combat . | . . . . . . . . . . . . . . . . . . . . . . . . . . . . . Combat . | . . . . . . . . . . . . . . . . . . . . . . . . . . . . . Robot Hacks Applied . | . . . . . . . . . . . . . . . . . . . . . . . . . . . . . Relay Couplers Released 2 | . . . . . . . . . . . . . . . . . . . . . . . . 2 . . . . Machine Destruction 2 | . . . . . . . . . . . . . . . . . . . . . . . . 2 . . . . Robots Rewired 1 | . . . . . . . . . . . . . . . . . . . . . . . . . 1 . . . Allies Hacked . | . . . . . . . . . . . . . . . . . . . . . . . . . . . . . Hacks Repelled . | . . . . . . . . . . . . . . . . . . . . . . . . . . . . . Allies | -11 -10 -10 -9 -9 -9 -8 -8 -7 -7 -7 -7 -7 -7 -6 -6 -6 -6 -6 -5 -5 -5 -5 -4 -4 -4 -4 -4 -4 -------- Run | Scr Mat Min Mat Min Exi Min Mat Fac Was Fac Low Low Zio Pro Fac Low Low Dat Pro Fac Upp War Pro Fac Ext Cet Arc Hub Total Allies 49 | . . 1 . 2 . . . . . . . . 4 1 . . . . 1 . . . . 8 15 9 3 5 Largest Group 11 | . . 1 . 2 1 . . . . . . . 4 4 1 . . . 1 . . . . 5 11 10 11 5 Highest-Rated Group 833 | . . 31 . 39 31 . . . . . . . 154 154 98 . . . 94 . . . . 476 695 688 833 396 Highest-Rated Ally 156 | . . 31 . 31 31 . . . . . . . 40 99 98 . . . 94 . . . . 96 156 156 122 103 Zionite Dispatches 10 | . . . . . . . . . . . . . . . . . . . . . . . . 1 3 3 . 3 Heavy 3 | . . . . . . . . . . . . . . . . . . . . . . . . . 2 . . 1 Light 2 | . . . . . . . . . . . . . . . . . . . . . . . . 1 . 1 . . Fire 2 | . . . . . . . . . . . . . . . . . . . . . . . . . 1 1 . . Hacker 1 | . . . . . . . . . . . . . . . . . . . . . . . . . . . . 1 Demo 2 | . . . . . . . . . . . . . . . . . . . . . . . . . . 1 . 1 Total Orders 14 | . . . . . . . . . . . . . . . . . . . . . 2 . . 9 2 1 . . AID 2 | . . . . . . . . . . . . . . . . . . . . . . . . 2 . . . . EXPLORE 11 | . . . . . . . . . . . . . . . . . . . . . 1 . . 7 2 1 . . RETURN 1 | . . . . . . . . . . . . . . . . . . . . . 1 . . . . . . . Ally Attacks 373 | . . 8 . 3 . . . . . . . . . 49 11 . . . 8 . . . . 27 151 49 32 35 Total Damage 16147 | . . 168 . 44 . . . . . . . . . 1791 530 . . . 331 . . . . 990 6907 1992 1630 1764 Kills 114 | . . 2 . 2 . . . . . . . . . 19 8 . . . 1 . . . . 3 39 15 13 12 Allies Corrupted 6 | . . . . . . . . . . . . . . . 1 . . . . . . 2 . 1 . . . 2 Allies Melted . | . . . . . . . . . . . . . . . . . . . . . . . . . . . . . Intel | -11 -10 -10 -9 -9 -9 -8 -8 -7 -7 -7 -7 -7 -7 -6 -6 -6 -6 -6 -5 -5 -5 -5 -4 -4 -4 -4 -4 -4 ------- Run | Scr Mat Min Mat Min Exi Min Mat Fac Was Fac Low Low Zio Pro Fac Low Low Dat Pro Fac Upp War Pro Fac Ext Cet Arc Hub Robot Analysis Total . | . . . . . . . . . . . . . . . . . . . . . . . . . . . . . Derelict Logs Recovered 16 | . . 1 . 1 . . . . . . 1 2 1 2 . 2 2 . 2 . 1 . 1 . . . . . Drone Launches 22 | . . . . . . . . . . . . . . . . . . . . . 2 . . 8 12 . . . Drone Recoveries . | . . . . . . . . . . . . . . . . . . . . . . . . . . . . . Zionite Intel Received 4 | . . . . . . . . . . . . . . . 3 . . . . . . . . . 1 . . . Prototype Stockpiles 1 | . . . . . . . . . . . . . . . . . . . . . . . . . 1 . . . Component Schematics 1 | . . . . . . . . . . . . . . . 1 . . . . . . . . . . . . . Prototype Schematics 1 | . . . . . . . . . . . . . . . 1 . . . . . . . . . . . . . Unaware Schematics 1 | . . . . . . . . . . . . . . . 1 . . . . . . . . . . . . . Exploration | -11 -10 -10 -9 -9 -9 -8 -8 -7 -7 -7 -7 -7 -7 -6 -6 -6 -6 -6 -5 -5 -5 -5 -4 -4 -4 -4 -4 -4 ------------- Run | Scr Mat Min Mat Min Exi Min Mat Fac Was Fac Low Low Zio Pro Fac Low Low Dat Pro Fac Upp War Pro Fac Ext Cet Arc Hub Turns Passed 34607 | 49 1427 1229 1979 1104 761 1046 2233 141 417 981 2331 1897 1736 2121 1325 1407 1645 143 2359 1038 1372 871 1762 991 1137 697 89 319 Spaces Moved 18038 | 35 955 702 970 574 448 537 978 105 205 468 1001 1067 1051 1198 681 788 937 90 1226 467 738 491 861 331 535 358 53 188 Core 5 | 5 . . . . . . . . . . . . . . . . . . . . . . . . . . . . Treads 15202 | . . . 392 574 448 537 565 . 157 468 1001 1067 1051 1198 681 788 937 90 1226 467 738 491 861 331 535 358 53 188 Legs 2831 | 30 955 702 578 . . . 413 105 48 . . . . . . . . . . . . . . . . . . . Wheels . | . . . . . . . . . . . . . . . . . . . . . . . . . . . . . Hover . | . . . . . . . . . . . . . . . . . . . . . . . . . . . . . Flight . | . . . . . . . . . . . . . . . . . . . . . . . . . . . . . Fastest Speed 50 | 50 120 120 120 170 170 170 127 127 127 160 160 160 160 160 160 160 160 160 160 160 160 160 160 160 160 160 160 160 Average Speed 157 | 118 120 126 158 170 170 170 167 127 153 160 160 160 160 160 160 160 160 160 165 160 164 160 160 160 160 160 160 160 Slowest Speed 190 | 150 120 150 190 170 170 170 190 127 180 160 160 160 160 160 160 160 160 160 180 160 180 160 160 160 160 180 160 160 Overloaded Moves . | . . . . . . . . . . . . . . . . . . . . . . . . . . . . . Propulsion Burnouts . | . . . . . . . . . . . . . . . . . . . . . . . . . . . . . Robots Hopped 2 | . . . . . . . . . . . . 2 . . . . . . . . . . . . . . . . Cave-ins Triggered 2 | . . . . . . . . . . . . . . . . . . . . . . . . . 1 . . 1 Exploration Rate (%) 73 | 3 99 94 97 96 92 96 93 3 84 15 98 96 92 98 30 95 98 80 91 21 99 57 92 15 94 78 77 36 Regions Visited 28 Branch Regions 19 Pre-discovered Areas 5 | . . . . . . . . . . . . 1 2 . . . . 1 . . . . 1 . . . . . Known Exits Taken 25 | . 1 1 1 1 1 1 1 . . 1 1 1 1 1 1 1 1 1 1 1 1 1 1 1 1 1 1 . Unknown Exits Taken 1 | 1 . . . . . . . . . . . . . . . . . . . . . . . . . . . . Scrap Searched 35 | . . 1 . 1 . 1 . . . . 2 4 2 1 . 5 10 . 4 . 2 . 2 . . . . . Spaces Dug 1 | . . . . . . . . . . . . . . . . . . . . 1 . . . . . . . . Terrain Destroyed 791 | . . 27 . . . . 17 . 4 5 16 4 . 2 83 24 27 . 30 77 19 . 49 12 36 3 . 356 Melee . | . . . . . . . . . . . . . . . . . . . . . . . . . . . . . Projectile 222 | . . . . . . . . . 4 5 16 4 . 2 8 24 27 . 30 8 19 . 29 12 27 3 . 4 AOE 569 | . . 27 . . . . 17 . . . . . . . 75 . . . . 69 . . 20 . 9 . . 352 Actions | -11 -10 -10 -9 -9 -9 -8 -8 -7 -7 -7 -7 -7 -7 -6 -6 -6 -6 -6 -5 -5 -5 -5 -4 -4 -4 -4 -4 -4 --------- Run | Scr Mat Min Mat Min Exi Min Mat Fac Was Fac Low Low Zio Pro Fac Low Low Dat Pro Fac Upp War Pro Fac Ext Cet Arc Hub Total 22304 | 40 1169 906 1232 644 448 615 1257 114 246 645 1673 1236 1108 1325 862 884 1016 89 1414 662 860 579 1066 754 760 441 57 202 Wait 2434 | . 158 93 100 22 . 33 19 . . 138 610 106 42 40 95 43 12 . 69 105 80 56 59 375 147 26 5 1 Move 18006 | 34 954 701 969 573 447 536 977 105 204 467 1000 1062 1050 1197 680 787 936 89 1225 466 737 490 860 330 534 357 52 187 Hop 2 | . . . . . . . . . . . . 2 . . . . . . . . . . . . . . . . Pick Up 78 | 1 1 3 7 . . 1 12 3 2 5 1 6 6 1 10 1 . . 4 2 . 3 2 3 . 3 . 1 Fast Attach 90 | 5 6 . 3 . . 1 5 . 5 . . 9 1 3 2 3 2 . 4 7 1 11 1 8 4 8 . 1 Attach 27 | . . 3 1 . 1 . 7 2 . . . 1 1 3 . . . . 1 . 1 . 1 1 . 3 . 1 Detach 4 | . 2 . . . . . . . . . . . . . . . . . . . 1 1 . . . . . . Swap 75 | . 2 5 2 . . 1 9 1 1 2 6 3 1 1 13 . . . 8 4 3 . 1 3 5 3 . 1 Drop 147 | . 4 . 5 . . 1 13 3 9 4 2 17 7 3 10 5 2 . 7 10 . 15 3 10 4 11 . 2 Fire 909 | . 34 72 96 30 . 33 145 . 25 22 23 16 . 36 36 27 34 . 68 51 17 . 81 16 25 20 . 2 Melee . | . . . . . . . . . . . . . . . . . . . . . . . . . . . . . Ram . | . . . . . . . . . . . . . . . . . . . . . . . . . . . . . Kick . | . . . . . . . . . . . . . . . . . . . . . . . . . . . . . Crush 3 | . . . . . . . . . . 3 . . . . . . . . . . . . . . . . . . Escape Stasis 1 | . . . . . . . . . . . . . . . . . . . . . . . . . . . . 1 Rewire 1 | . . . . . . . . . . . . . . . . . . . . . . . . . 1 . . . Trap . | . . . . . . . . . . . . . . . . . . . . . . . . . . . . . Miscellaneous 527 | . 8 29 49 19 . 9 70 . . 4 31 14 . 41 16 18 30 . 28 17 20 3 58 8 40 10 . 5 Route ------- -11/Scrapyard -10/Materials (discovered 4 exits: *Mat x3 / *Min) -10/Mines (discovered 2 exits: *Mat x2) -9/Materials (discovered 4 exits: *Mat x3 / *Min) -9/Mines (discovered 3 exits: *Mat x2 / *Exi) -9/Exiles (discovered 2 exits: *Min x2) -8/Mines (discovered 2 exits: *Mat x2) -8/Materials (discovered 3 exits: *Fac x3) -7/Factory -7/Waste -7/Factory (discovered 3 exits: *Fac / *Low x2) -7/Lower Caves -7/Lower Caves (discovered 2 exits: *Fac / *Zio) -7/Zion (discovered 2 exits: [Dee] / *Pro) -6/Proximity Caves -6/Factory (discovered 3 exits: *Fac x2 / *Low) -6/Lower Caves -6/Lower Caves (discovered 2 exits: *Fac / *Dat) -6/Data Miner -5/Proximity Caves -5/Factory (discovered 3 exits: *Fac x2 / *Upp) -5/Upper Caves (discovered 2 exits: *Upp / *War) -5/Warlord -4/Proximity Caves -4/Factory -4/Extension (discovered 3 exits: *Res x2 / *Cet) -4/Cetus (discovered 3 exits: *Res x2 / *Arc) -4/Archives (discovered 2 exits: Res / *Hub) -4/Hub_04(d) (discovered 2 exits: *Res x2) History --------- Turn | Location | Event 1 | -11/Scrapyard | Upgraded with Propulsion slot (x1) 1 | -11/Scrapyard | Upgraded with Utility slot (x1) 1 | -11/Scrapyard | Upgraded with Weapon slot (x1) 14 | -11/Scrapyard | Discovered new exit (range 15) 50 | -11/Scrapyard | Entered Materials 316 | -10/Materials | Build established: Mutant 430 | -10/Materials | Discovered new exit (range 8) 673 | -10/Materials | Discovered new exit (range 16) 809 | -10/Materials | Discovered new exit (range 15) 1159 | -10/Materials | Discovered new exit (range 14) 1249 | -10/Materials | Identified exit to Materials 1476 | -10/Materials | Identified exit to Mines 1477 | -10/Materials | Entered Mines 1479 | -10/Mines | Reached level 2 1484 | -10/Mines | Received a Rocket Launcher from a helpful Derelict 1524 | -10/Mines | Upgraded with Utility slot (x1) 1542 | -10/Mines | Learned Materials security intel 1583 | -10/Mines | Discovered exit to Materials (range 10) 1849 | -10/Mines | Reached level 3 1875 | -10/Mines | Upgraded with Power slot (x1) 1992 | -10/Mines | Discovered exit to Materials (range 6) 1995 | -10/Mines | Met a Derelict testing a Signal Generator 2106 | -10/Mines | Assembled infested the area 2111 | -10/Mines | Assisted by a Guerilla fighting off Assembled 2179 | -10/Mines | Core integrity fell below 50% 2706 | -10/Mines | Entered Materials 2707 | -9/Materials | Core integrity fell below 50% 2708 | -9/Materials | Reached level 4 2708 | -9/Materials | Upgraded with Utility slot (x1) 2805 | -9/Materials | Build established: Scavenger-Skirmisher 2815 | -9/Materials | Reached level 5 2831 | -9/Materials | Upgraded with Utility slot (x1) 2913 | -9/Materials | Discovered new exit (range 17) 3045 | -9/Materials | Identified exit to Mines 3107 | -9/Materials | Reached level 6 3215 | -9/Materials | Discovered new exit (range 16) 3724 | -9/Materials | Reached level 7 3885 | -9/Materials | Discovered new exit (range 13) 3965 | -9/Materials | Identified exit to Materials 4420 | -9/Materials | Discovered exit to Materials (range 16) 4685 | -9/Materials | Entered Mines 4687 | -9/Mines | Reached level 8 4777 | -9/Mines | Discovered exit to Materials (range 16) 4793 | -9/Mines | Discovered new exit (range 13) 4851 | -9/Mines | Deemed a non-threat by the Exiles lab entrance 4857 | -9/Mines | Identified exit to Exiles 5182 | -9/Mines | Discovered exit to Materials (range 14) 5309 | -9/Mines | Reached level 9 5527 | -9/Mines | Learned Materials terminal intel 5789 | -9/Mines | Entered Exiles 5789 | -9/Exiles | Found Exiles lab abandoned 5789 | -9/Exiles | Accompanied by 1 ally 5812 | -9/Exiles | Discovered new exit (range 15) 5819 | -9/Exiles | Led the pair of lost Derelicts to a safe place 5834 | -9/Exiles | Identified exit to Mines 6342 | -9/Exiles | Upgraded with Utility slot (x1) 6526 | -9/Exiles | Discovered exit to Mines (range 16) 6550 | -9/Exiles | Entered Mines 6574 | -8/Mines | Discovered exit to Materials (range 9) 6639 | -8/Mines | Discovered exit to Materials (range 16) 6864 | -8/Mines | Reached level 10 7596 | -8/Mines | Entered Materials 7597 | -8/Materials | Loaded intel: 12 terminal locations 7598 | -8/Materials | Reached level 11 7605 | -8/Materials | Upgraded with Utility slot (x1) 7701 | -8/Materials | Core integrity fell below 50% 7760 | -8/Materials | Destroyed 11 combat bots 7865 | -8/Materials | Reached level 12 7921 | -8/Materials | Upgraded with Weapon slot (x2) 8008 | -8/Materials | Discovered new exit (range 9) 8025 | -8/Materials | Identified exit to Factory 8633 | -8/Materials | Discovered exit to Factory (range 16) 9550 | -8/Materials | Garrison activated, responded to threat 9564 | -8/Materials | Reached level 13 9581 | -8/Materials | Upgraded with Propulsion slot (x2) 9599 | -8/Materials | Destroyed 10 combat bots 9715 | -8/Materials | Discovered exit to Factory (range 17) 9829 | -8/Materials | Entered Factory 9831 | -7/Factory | Reached level 14 9847 | -7/Factory | Upgraded with Power slot (x1) 9970 | -7/Factory | Sucked down chute 9970 | -7/Factory | Entered Waste 9982 | -7/Waste | Spotted C-40 Crusher 9985 | -7/Waste | EMP discharged 10002 | -7/Waste | Spotted C-40 Crusher 10015 | -7/Waste | Spotted C-40 Crusher 10027 | -7/Waste | Destroyed C-40 Crusher 10034 | -7/Waste | Destroyed C-40 Crusher 10041 | -7/Waste | Spotted C-40 Crusher 10042 | -7/Waste | Spotted C-40 Crusher 10049 | -7/Waste | Found Damper Plating 10061 | -7/Waste | Destroyed C-40 Crusher 10071 | -7/Waste | Destroyed C-40 Crusher 10075 | -7/Waste | Spotted C-40 Crusher 10085 | -7/Waste | EMP discharged 10085 | -7/Waste | System corruption reached 10% 10185 | -7/Waste | EMP discharged 10233 | -7/Waste | Discovered new exit (range 10) 10251 | -7/Waste | Identified exit to Factory 10285 | -7/Waste | EMP discharged 10320 | -7/Waste | Destroyed C-40 Crusher 10385 | -7/Waste | EMP discharged 10387 | -7/Waste | Entered Factory 11038 | -7/Factory | Discovered new exit (range 18) 11068 | -7/Factory | Identified exit to Factory 11338 | -7/Factory | Discovered new exit (range 11) 11361 | -7/Factory | Discovered new exit (range 13) 11362 | -7/Factory | Identified exit to Lower Caves 11368 | -7/Factory | Entered Lower Caves 11370 | -7/Lower Caves | Reached level 15 11595 | -7/Lower Caves | Encountered a Warlord checkpoint 12570 | -7/Lower Caves | Spotted B-75 Beast 12585 | -7/Lower Caves | Destroyed B-75 Beast 12626 | -7/Lower Caves | Attracted the attention of an 0b10 outpost 12692 | -7/Lower Caves | Destroyed 8 combat bots 12768 | -7/Lower Caves | Learned location of 1 exit from Factory 13287 | -7/Lower Caves | Discovered new exit (range 12) 13303 | -7/Lower Caves | Identified exit to Lower Caves 13699 | -7/Lower Caves | Entered another Lower Caves area 13876 | -7/Lower Caves | Discovered exit to Factory (range 7) 13964 | -7/Lower Caves | Spotted B-75 Beast 13978 | -7/Lower Caves | Destroyed B-75 Beast 14259 | -7/Lower Caves | Discovered new exit (range 16) 14292 | -7/Lower Caves | Identified exit to Zion 14424 | -7/Lower Caves | Learned Factory terminal intel 14441 | -7/Lower Caves | Found Prototype Device 14456 | -7/Lower Caves | Identified Heart of Steel 14929 | -7/Lower Caves | Build established: Scavenger-Mutant 15005 | -7/Lower Caves | Encountered a Warlord checkpoint 15284 | -7/Lower Caves | Build established: Scavenger-Skirmisher 15596 | -7/Lower Caves | Entered Zion 15598 | -7/Zion | Reached level 16 15648 | -7/Zion | Discovered new exit (range 18) 15956 | -7/Zion | Learned location of Armory (-4) 16036 | -7/Zion | Upgraded with Utility slot (x1) 16313 | -7/Zion | Learned 4 Factory zone layouts 16410 | -7/Zion | Given A8's code to call for help 16476 | -7/Zion | Received a visual enhancement algorithm 16627 | -7/Zion | Discovered new exit (range 15) 16741 | -7/Zion | Imprinted 16743 | -7/Zion | Declared Zion's savior 17045 | -7/Zion | Build established: Messiah-Skirmisher 17223 | -7/Zion | Found Prototype Energy Gun 17237 | -7/Zion | Identified Storm Laser 17321 | -7/Zion | Identified exit to Proximity Caves 17332 | -7/Zion | Entered Proximity Caves 17332 | -6/Proximity Caves | Accompanied by 4 allies 17403 | -6/Proximity Caves | Attracted the attention of an 0b10 checkpoint 17417 | -6/Proximity Caves | Reached level 17 18323 | -6/Proximity Caves | Spotted B-75 Beast 18357 | -6/Proximity Caves | Destroyed B-75 Beast 18462 | -6/Proximity Caves | Heart of Steel transformed into Warbot 18671 | -6/Proximity Caves | Reached level 18 18673 | -6/Proximity Caves | Upgraded with Power slot (x1) 18867 | -6/Proximity Caves | Learned 4 Factory zone layouts 18874 | -6/Proximity Caves | Learned location of 1 exit from Factory 19453 | -6/Proximity Caves | Entered Factory 19453 | -6/Factory | Accompanied by 1 ally 19454 | -6/Factory | Identified exit to Factory 19454 | -6/Factory | Identified exit to Lower Caves 19456 | -6/Factory | Loaded intel: 19 terminal locations 19525 | -6/Factory | Reached level 19 20252 | -6/Factory | Retrieved Zion intel report: Prototype Schematics 20420 | -6/Factory | Retrieved Zion intel report: Unaware Schematics 20553 | -6/Factory | Discovered exit to Factory (range 17) 20759 | -6/Factory | Retrieved Zion intel report: Component Schematics 20778 | -6/Factory | Entered Lower Caves 21270 | -6/Lower Caves | Spotted B-75 Beast 21278 | -6/Lower Caves | Destroyed B-75 Beast 21302 | -6/Lower Caves | Reached level 20 21659 | -6/Lower Caves | Learned Factory terminal intel 21745 | -6/Lower Caves | Discovered new exit (range 16) 21762 | -6/Lower Caves | Learned 4 Factory zone layouts 21783 | -6/Lower Caves | Identified exit to Lower Caves 22185 | -6/Lower Caves | Entered another Lower Caves area 22221 | -6/Lower Caves | Learned Factory garrison access intel 22264 | -6/Lower Caves | Discovered exit to Factory (range 18) 22282 | -6/Lower Caves | Attracted the attention of an 0b10 outpost 22692 | -6/Lower Caves | Attracted the attention of an 0b10 checkpoint 22722 | -6/Lower Caves | Identified exit to Data Miner 23830 | -6/Lower Caves | Entered Data Miner 23830 | -6/Data Miner | Discovered new exit (range 6) 23838 | -6/Data Miner | Identified exit to Proximity Caves 23851 | -6/Data Miner | Met Data Miner 23907 | -6/Data Miner | Learned location of Section 7 (-2) 23907 | -6/Data Miner | Acquired the access code to Warlord's prototype stash 23934 | -6/Data Miner | Received God Mode back door access code from Data Miner 23973 | -6/Data Miner | Entered Proximity Caves 23975 | -5/Proximity Caves | Reached level 21 23983 | -5/Proximity Caves | Upgraded with Utility slot (x1) 24155 | -5/Proximity Caves | Learned 12 Factory zone layouts 24423 | -5/Proximity Caves | Snuck into a huge 0b10 base via the rear entrance 24430 | -5/Proximity Caves | Escorted by Enhanced Grunt 24510 | -5/Proximity Caves | Discovered exit to Factory (range 15) 24761 | -5/Proximity Caves | Spotted B-75 Beast 24765 | -5/Proximity Caves | Destroyed B-75 Beast 25095 | -5/Proximity Caves | Build established: Messiah-Mutant 25412 | -5/Proximity Caves | Build established: Messiah-Skirmisher 25522 | -5/Proximity Caves | Learned Factory garrison access intel 25536 | -5/Proximity Caves | Reached level 22 25545 | -5/Proximity Caves | Attracted the attention of an 0b10 base 25580 | -5/Proximity Caves | Destroyed 7 combat bots 26332 | -5/Proximity Caves | Entered Factory 26333 | -5/Factory | Identified exit to Upper Caves 26333 | -5/Factory | Identified exit to Factory 26334 | -5/Factory | Loaded intel: 20 terminal locations 26335 | -5/Factory | Loaded intel: 4 garrison access locations 26429 | -5/Factory | Local fabrication network quarantined 26482 | -5/Factory | Fabricated Exp. Sensor Array (x1) 26661 | -5/Factory | Discovered exit to Factory (range 15) 26932 | -5/Factory | First assault squad dispatched 27156 | -5/Factory | Reached level 23 27192 | -5/Factory | Destroyed 8 combat bots 27368 | -5/Factory | Incoming assault squad redirected 27370 | -5/Factory | Entered Upper Caves 27371 | -5/Upper Caves | Upgraded with Utility slot (x1) 27724 | -5/Upper Caves | A Derelict revealed a hidden shortcut to "reach the base" 27725 | -5/Upper Caves | Identified exit to Warlord 27856 | -5/Upper Caves | Learned Factory emergency access door positions 28126 | -5/Upper Caves | Discovered new exit (range 16) 28173 | -5/Upper Caves | Identified exit to Upper Caves 28742 | -5/Upper Caves | Entered Warlord 28742 | -5/Warlord | Accompanied by 2 allies 28841 | -5/Warlord | Discovered new exit (range 12) 29196 | -5/Warlord | Warlord's base attacked by MAIN.C 29213 | -5/Warlord | Rebuked by Warlord 29266 | -5/Warlord | Opened Warlord's prototype stash 29277 | -5/Warlord | Found Prototype Device 29277 | -5/Warlord | Identified System Purifier 29283 | -5/Warlord | Found Prototype Processor 29283 | -5/Warlord | Identified Spectral Analyzer 29290 | -5/Warlord | Found Prototype Hackware 29290 | -5/Warlord | Identified Ghost Barrier 29299 | -5/Warlord | Found Prototype Device 29299 | -5/Warlord | Identified Exp. Phase Shifter 29304 | -5/Warlord | Found Prototype Reactor 29304 | -5/Warlord | Identified Vortex Chain Reactor 29516 | -5/Warlord | Opened side exit 29546 | -5/Warlord | Warlord forces counterattacked 29597 | -5/Warlord | Spotted Executioner 29611 | -5/Warlord | Identified exit to Proximity Caves 29613 | -5/Warlord | Entered Proximity Caves 29616 | -4/Proximity Caves | Reached level 24 29693 | -4/Proximity Caves | Spotted B-86 Titan 29737 | -4/Proximity Caves | Destroyed B-86 Titan 30556 | -4/Proximity Caves | Discovered exit to Factory (range 15) 31064 | -4/Proximity Caves | Attracted the attention of an 0b10 base 31076 | -4/Proximity Caves | Reached level 25 31128 | -4/Proximity Caves | Destroyed 7 combat bots 31374 | -4/Proximity Caves | Upgraded with Utility slot (x1) 31375 | -4/Proximity Caves | Entered Factory 31377 | -4/Factory | Loaded intel: 4 garrison access locations 31542 | -4/Factory | Fabricated H-66 Slayer (x2) 31568 | -4/Factory | Local fabrication network quarantined 31669 | -4/Factory | Fabricated M-28 Smith? 32212 | -4/Factory | Zion Light squad teleported in 32221 | -4/Factory | Enhanced Grunt warped into view, answering call for help 32222 | -4/Factory | Enhanced Grunt warped into view, answering call for help 32321 | -4/Factory | Discovered new exit (range 17) 32365 | -4/Factory | Identified exit to Extension 32366 | -4/Factory | Entered Extension 32366 | -4/Extension | Accompanied by 3 allies 32368 | -4/Extension | Reached level 26 32436 | -4/Extension | Incoming investigation squad redirected 32453 | -4/Extension | Rescued a captive Derelict 32454 | -4/Extension | Rescued a captive Derelict 32536 | -4/Extension | Incoming investigation squad redirected 32579 | -4/Extension | Retrieved Zion intel report: Prototype Stockpiles 32580 | -4/Extension | Zion Heavy squad teleported in 32759 | -4/Extension | Spotted B-86 Titan 32783 | -4/Extension | Spotted B-86 Titan 32794 | -4/Extension | Discovered new exit (range 17) 32804 | -4/Extension | Allies destroyed B-86 Titan 32807 | -4/Extension | Allies destroyed B-86 Titan 32866 | -4/Extension | First assault squad dispatched 32883 | -4/Extension | Incoming assault squad redirected 32888 | -4/Extension | Incoming assault squad redirected 32889 | -4/Extension | Zion Heavy squad teleported in 32924 | -4/Extension | Identified exit to Research 33213 | -4/Extension | Rescued A7 33216 | -4/Extension | Zion Fire squad teleported in 33241 | -4/Extension | Rescued a captive Derelict 33247 | -4/Extension | Rescued a captive Derelict 33270 | -4/Extension | Reached level 27 33287 | -4/Extension | Discovered exit to Research (range 40) 33287 | -4/Extension | Discovered new exit (range 37) 33292 | -4/Extension | Rescued a captive Derelict 33309 | -4/Extension | Incoming assault squad redirected 33391 | -4/Extension | Crushed by falling debris 33443 | -4/Extension | Identified exit to Cetus 33503 | -4/Extension | Entered Cetus 33503 | -4/Cetus | Accompanied by 9 allies 33508 | -4/Cetus | Acquired a Cetus Manufacturing Module code from A7 33514 | -4/Cetus | Spotted Cetus Guard 33515 | -4/Cetus | Spotted Cetus Guard 33515 | -4/Cetus | Spotted Cetus Guard 33521 | -4/Cetus | Spotted Cetus Guard 33529 | -4/Cetus | Allies destroyed Cetus Guard 33542 | -4/Cetus | Allies destroyed Cetus Guard 33552 | -4/Cetus | Destroyed Cetus Guard 33553 | -4/Cetus | Allies destroyed Cetus Guard 33632 | -4/Cetus | Found Prototype Protection 33633 | -4/Cetus | Identified Zio. Weapon Casing 33715 | -4/Cetus | Discovered exit to Research (range 21) 33782 | -4/Cetus | P-70 Sage assimilated allied 7P-K62(g) 33799 | -4/Cetus | Cetus Manufacturing Module disabled 33851 | -4/Cetus | Zion Light squad teleported in 33858 | -4/Cetus | Zion Demo squad teleported in 33896 | -4/Cetus | Zion Fire squad teleported in 33922 | -4/Cetus | Discovered new exit (range 20) 33952 | -4/Cetus | Identified exit to Archives 33993 | -4/Cetus | Spotted Cetus Guard 33993 | -4/Cetus | Spotted Cetus Guard 33996 | -4/Cetus | Spotted Cetus Guard 33997 | -4/Cetus | Spotted Cetus Guard 33997 | -4/Cetus | Allies destroyed Cetus Guard 34009 | -4/Cetus | Destroyed Cetus Guard 34009 | -4/Cetus | Allies destroyed Cetus Guard 34018 | -4/Cetus | Allies destroyed Cetus Guard 34025 | -4/Cetus | Discovered exit to Research (range 21) 34044 | -4/Cetus | Scared off Revision 17 34200 | -4/Cetus | Entered Archives 34200 | -4/Archives | Accompanied by 9 allies 34218 | -4/Archives | Met Zhirov 34224 | -4/Archives | Reinforcements dispatched to Archives 34226 | -4/Archives | Discovered exit to Research (range 18) 34229 | -4/Archives | Discovered new exit (range 20) 34237 | -4/Archives | Unable to access archive contents 34268 | -4/Archives | Identified exit to Hub_04(d) 34269 | -4/Archives | Reinforcements dispatched to Archives 34289 | -4/Archives | Zhirov detonated Archives 34289 | -4/Archives | Entered Hub_04(d) 34291 | -4/Hub_04(d) | Reached level 28 34296 | -4/Hub_04(d) | Upgraded with Weapon slot (x1) 34353 | -4/Hub_04(d) | Zion Heavy squad teleported in 34366 | -4/Hub_04(d) | Discovered exit to Research (range 17) 34388 | -4/Hub_04(d) | Zion Hacker squad teleported in 34451 | -4/Hub_04(d) | Zion Demo squad teleported in 34539 | -4/Hub_04(d) | First assault squad dispatched 34570 | -4/Hub_04(d) | Discovered exit to Research (range 18) 34575 | -4/Hub_04(d) | Network Hub disabled 34579 | -4/Hub_04(d) | Network Hub disabled 34581 | -4/Hub_04(d) | Spotted B-86 Titan 34587 | -4/Hub_04(d) | Crushed by falling debris 34589 | -4/Hub_04(d) | Spotted Lightning 34591 | -4/Hub_04(d) | Spotted Lightning 34591 | -4/Hub_04(d) | Spotted Lightning 34591 | -4/Hub_04(d) | Spotted Lightning 34593 | -4/Hub_04(d) | Spotted Lightning 34594 | -4/Hub_04(d) | Spotted Lightning 34594 | -4/Hub_04(d) | Spotted Lightning 34595 | -4/Hub_04(d) | Spotted Lightning 34598 | -4/Hub_04(d) | Spotted Lightning 34600 | -4/Hub_04(d) | Core integrity fell below 50% 34602 | -4/Hub_04(d) | Incoming assault squad redirected 34605 | -4/Hub_04(d) | Spotted Lightning 34606 | -4/Hub_04(d) | Core integrity fell below 20% 34608 | -4/Hub_04(d) | Destroyed by B-86 Titan with Matter Neutralizer Last Messages --------------- Penetrated by EMDS Slug. Penetrated by Slug. Penetrated by EMDS Slug. H-77 Assassin IFF system glitched. Slug penetrates R-10 Processor. R-10 Processor suffers critical hit. B-86 Titan activates siege mode. K-01 Serf exits level. Penetrated by EMDS Slug. ALERT: Higher priority target reported, redirecting assault. EMDS Slug penetrates Earth. EMDS Slug penetrates Wall. Penetrated by EMDS Slug. EMDS Slug penetrates Lightning. Penetrated by EMDS Slug. Penetrated by Slug. EMDS Slug penetrates Wall. Penetrated by EMDS Slug. Slug penetrates Wall. Penetrated by EMDS Slug. Map ----- +----------------------------------------------------+ | ##???????????????????????????????????? | | ?###?????????????????????????????????? | | #?###?????#???????#????#????#????????? | | ##??#?????#????##??#####??###?#??????? | | ########?##########? ?? ?? ?? ???? | | ######??########## ? ????? | | #####?############ ";""""""?;""" ??#? | | ################## ; ; ?#?# | | ################## ; ; ##? | | ################## ; u ; #?? | | ################## ; ; #?# | | ################## ; ; ##? | | ################# ; ; ### | | ########### # # # ; ; ##? | | # ; ; ### | | # ; = ; ##? | | # ; ##? | | # ;;;;";;;;;;; #?# | | # [ ! " ; ##? | | # ! " ; ##### | | # # ; ###?#? | | # ; ######## | | # ;######### | | # ####### | | = #####?? | | @%< ######## | | b ! = ; ######? | | gg % =[[#;;;;#######? | | !%* =%!%! ####### | | " !*! g !R! ####### | | ""=[%!* ; ! #####?# | | " !=%*%!= h hhhh ! ######? | | " "*%!/!%= ## ; ih =% #####?# | | " # %=*=* ###;i hh #?#?##? | | # !# "###hh hk #"#;;;####?#? | | #### " R kti A #######?### | | %" ## ""# ;[=;;;;;;"# ## ?? | | " ##" " # #%####BB;#" ## # | | #######""### #= BB** # ? ?? # | | # # ## !** # # | | # """ # #### * * / # | | # # # ? ? | | + """ # ] # # | | # # ## # | | # """ # g ## # | | + # gg #####??#?#? | | #######""### g ## ? ????? | | #############/#####" "# ## ????? | | + g #"G"# ?????? | | ##### ####k" " " # " # ? ????R???? | +----------------------------------------------------+ Best States ------------- Heat Dissipation 121 Coolant Potential 120 Energy Generation 105 Energy Capacity 1200 Matter Stores 300 Matter Capacity 300 Sight Range 25 Robot Scan Range 38 Terrain Scan Range 24 Terrain Scan Density 910 Jamming Range 8 Base Temperature (-) 100 Armor Coverage 825 Resistance: KI 30 Resistance: TH 30 Resistance: EX 25 Resistance: EM 20 Resistance: I 20 Resistance: S 20 Resistance: P 20 Weapon Cycling 15 Phase Shifting 20 Evasion (%) 60 Target Analysis 8 Recoil Reduction 4 Matter Filtering 50 Particle Charging 20 Offensive Hacking 10 Item Schematics ----------------- Beamcaster | -7/Zion | Free Riot Gun | -7/Zion | Free Flamer | -7/Zion | Free Ripper | -7/Zion | Free Mni. Assault Cannon | -6/Factory | Z-intel Hvy. EM Shotgun | -6/Factory | Z-intel Ion Burst Cannon | -6/Factory | Z-intel Biomechanical Wings | -6/Factory | Z-intel Cld. Aerolev Unit | -6/Factory | Z-intel Prc. Shock Rifle | -6/Factory | Z-intel Prc. Rocket Launcher | -6/Factory | Z-intel Scatter Rocket Array | -6/Factory | Z-intel Prc. Assault Rifle | -6/Factory | Z-intel Hvy. Particle Gun | -6/Factory | Z-intel Antimatter Cannon | -6/Factory | Z-intel Hacking Suite | -6/Factory | Z-intel Hardlight Generator | -6/Factory | Z-intel Energy Filter | -6/Factory | Z-intel Imp. Maneuvering Thrusters | -6/Factory | Z-intel Phase Cannon | -6/Factory | Z-intel Adv. Terrain Scanner | -6/Factory | Z-intel System Backup Module | -6/Factory | Z-intel System Guard | -6/Factory | Z-intel Imp. Hardlight Generator | -6/Factory | Z-intel Recoil Stabilizer | -6/Factory | Z-intel Imp. System Backup Module | -6/Factory | Z-intel Adv. Signal Interpreter | -6/Factory | Z-intel Adv. Targeting Computer | -6/Factory | Z-intel Microactuators | -6/Factory | Z-intel Combat Drone Bay | -6/Data Miner | Free Lgt. Regenerative Plating | -6/Data Miner | Free Exp. Flexi-carbon Leg | -6/Data Miner | Free Cmb. Gravmag System | -6/Data Miner | Free Exp. Sensor Array | -6/Data Miner | Free Exp. Targeting Computer | -6/Data Miner | Free Tactical Coordination Suite | -6/Data Miner | Free Exp. Transmission Jammer | -6/Data Miner | Free Exp. ECM Suite | -6/Data Miner | Free Plasma Sword | -6/Data Miner | Free Robot Schematics ------------------ M-28 Smith | -6/Factory | Z-intel R-06 Scavenger | -6/Factory | Z-intel G-50 Soldier | -6/Factory | Z-intel S-27 Virus | -6/Data Miner | Free L-41 Fighter | -6/Data Miner | Free H-66 Slayer | -6/Data Miner | Free P-70 Sage | -6/Data Miner | Free I-36 Angel | -6/Data Miner | Free Fabricated ------------ Exp. Sensor Array | x1 | -5/Factory H-66 Slayer | x2 | -4/Factory M-28 Smith | x1 | -4/Factory Alien Tech Used ----------------- None Achievements -------------- A New Friend Collateral Damage Friend Of Zion Generalissimo Tank Challenges ------------ None RPGLIKE | -11 -10 -10 -9 -9 -9 -8 -8 -7 -7 -7 -7 -7 -7 -6 -6 -6 -6 -6 -5 -5 -5 -5 -4 -4 -4 -4 -4 -4 --------- Run | Scr Mat Min Mat Min Exi Min Mat Fac Was Fac Low Low Zio Pro Fac Low Low Dat Pro Fac Upp War Pro Fac Ext Cet Arc Hub Levels Raised 27 | . . 2 4 2 . 1 3 1 . . 1 . 1 2 1 1 . . 2 1 . . 2 . 2 . . 1 XP Earned 44923 | 4000 1240 2764 6375 1803 97 1350 4640 1500 139 959 1021 436 344 3520 1778 774 508 152 2304 1406 393 234 2465 1289 1934 667 398 433 XP Spent 43800 | 4000 . 2995 5995 1240 1755 . 5800 1600 . . . . 3115 2900 1550 . . . 2600 . 2900 . 3550 . . 2400 . 1400 Upgrades 73 | 7 . 17 10 4 2 . 5 4 . . . . 5 5 5 . . . 1 . 1 . 2 . . 4 . 1 Power Slot 3 | . . 1 . . . . . 1 . . . . . 1 . . . . . . . . . . . . . . Propulsion Slot 3 | 1 . . . . . . 2 . . . . . . . . . . . . . . . . . . . . . Utility Slot 10 | 1 . 1 2 . 1 . 1 . . . . . 1 . . . . . 1 . 1 . 1 . . . . . Weapon Slot 4 | 1 . . . . . . 2 . . . . . . . . . . . . . . . . . . . . 1 Core Integrity 4 | . . 2 1 . 1 . . . . . . . . . . . . . . . . . . . . . . . Heat Dissipation 16 | . . 8 . . . . . . . . . . 3 . 5 . . . . . . . . . . . . . Inventory Capacity 6 | 4 . . 2 . . . . . . . . . . . . . . . . . . . . . . . . . Sight Range 5 | . . 1 . . . . . . . . . . . . . . . . . . . . . . . 4 . . Sensor Range 4 | . . 2 1 . . . . . . . . . 1 . . . . . . . . . . . . . . . Terrain Scan Density 9 | . . 1 4 4 . . . . . . . . . . . . . . . . . . . . . . . . Ranged Accuracy 4 | . . 1 . . . . . 1 . . . . . 2 . . . . . . . . . . . . . . KI Resistance % 2 | . . . . . . . . 1 . . . . . 1 . . . . . . . . . . . . . . TH Resistance % 2 | . . . . . . . . 1 . . . . . . . . . . . . . . 1 . . . . . EX Resistance % 1 | . . . . . . . . . . . . . . 1 . . . . . . . . . . . . . . Protomatter Created 6787 | . 93 179 516 175 . 81 872 . . 71 280 96 . 344 247 319 221 . 903 326 123 . 1010 282 418 48 . 183 Integrity Restored 9872 | . 147 531 993 317 . 162 1407 . . 74 664 280 . 857 329 284 640 . 409 345 344 55 1141 34 591 165 . 103 Core 6845 | . 125 487 853 225 . 85 1053 . . 33 381 116 . 549 274 170 499 . 268 246 187 . 748 3 429 43 . 71 Parts 3027 | . 22 44 140 92 . 77 354 . . 41 283 164 . 308 55 114 141 . 141 99 157 55 393 31 162 122 . 32 Protomatter Decayed 5615 | . 41 44 182 65 . 25 378 . . 46 56 163 . 321 129 226 2 . 811 190 . 587 560 318 1048 180 56 187 Game ------ Seed MappingBiomechanicalBuckler Manual? 0 Play Time 04:37:23 Cumulative 83.3 hours Start 2020.01.12 @ 21:28:28 End 2020.01.13 @ 02:53:42 Sessions 1 Manual Loads 0 Difficulty Adventurer Special Mode Winter2019/RPGLIKE Game No. 32 Rogue 12 Adventurer 20 Explorer 0 Win Type - Total 1 Types 1/0/0/0/0/0/0 Lore% 44 Gallery% 44 Achievement% 46 Wizard Run 0 Options --------- ASCII 0 Keyboard 0 Movement Mouse Keybinds 0 Fullscreen 1 Font 18/SmallcapsGlow Map View 76x50 Tactical HUD 0 Map Filters NONE Filters NONE Steam 1 RUN: 90c23141-7375-4812-a42f-59c9c4fed407